bitfinex/quotes_SOLUSD_20260309
["timestamp","ask_amount","ask_price","bid_price","bid_amount"]
[1773016359277,0.53288465,82.367,82.316,0.55967939]
[1773016359563,0.53288465,82.377,82.324,0.55967939]
[1773016360070,0.53288465,82.377,82.329,4.82477569]
[1773016360265,12.13784681,82.387,82.334,0.55967939]
[1773016360266,0.53288465,82.386,82.334,0.55967939]
[1773016360450,12.17530701,82.38,82.334,0.55967939]
[1773016360652,0.53288465,82.386,82.334,0.55967939]
[1773016361146,60.6650758,82.42,82.31,103.26813265]
[1773016361147,12.11695282,82.529,82.444,0.55967939]
[1773016361367,12.17530701,82.51,82.444,0.55967939]
[1773016361558,3.69383402,82.511,82.431,15.11711092]
[1773016361765,12.17530701,82.47,82.417,0.55967939]
[1773016361949,12.17530701,82.47,82.413,0.55967939]
[1773016362359,12.17530701,82.46,82.406,3.97815716]
[1773016362564,12.17530701,82.5,82.404,0.28432314]
[1773016362565,12.17530701,82.45,82.404,0.28432314]
[1773016362760,12.17530701,82.46,82.404,0.84400253]
[1773016363063,12.17530701,82.45,82.405,42.47315089]
[1773016363260,0.53288465,82.439,82.405,42.47315089]
[1773016363496,0.53288465,82.439,82.405,12.13518597]
[1773016363669,0.53288465,82.439,82.405,42.47315089]
[1773016363974,42.43452957,82.48,82.386,0.28432314]
[1773016363975,0.53288465,82.429,82.386,0.28432314]
[1773016364171,48.44288797,82.572,82.399,0.55967939]
[1773016364345,48.44288797,82.572,82.422,4.82477569]
[1773016364346,12.17530701,82.48,82.422,4.82477569]
[1773016364663,12.17530701,82.48,82.425,0.55967939]
[1773016365364,12.17530701,82.45,82.402,0.55967939]
[1773016365551,12.17530701,82.45,82.406,3.69383402]
[1773016365755,12.17530701,82.45,82.408,0.55967939]
[1773016366868,0.53288465,82.451,82.408,0.55967939]
[1773016367068,0.53288465,82.449,82.408,0.55967939]
[1773016367446,0.53288465,82.449,82.411,0.55967939]
[1773016369975,0.53288465,82.449,82.413,0.55967939]
[1773016370157,0.53288465,82.439,82.412,12.13415522]
[1773016370779,0.53288465,82.448,82.412,43.02922266]
[1773016371159,0.53288465,82.439,82.396,0.28432314]
[1773016371370,0.53288465,82.439,82.396,0.84400253]
[1773016371552,0.53288465,82.429,82.395,42.47830571]
[1773016372367,12.1307984,82.435,82.395,30.90132633]
[1773016372670,12.17530701,82.43,82.389,0.55967939]
[1773016373864,12.1307984,82.435,82.389,0.55967939]
[1773016374376,12.1307984,82.435,82.392,0.55967939]
[1773016375993,12.17530701,82.43,82.394,0.55967939]
[1773016376354,0.23175326,82.419,82.38,12.13886865]
[1773016376671,12.17530701,82.43,82.381,0.55967939]
[1773016376979,12.17530701,82.43,82.382,0.55967939]
[1773016377978,12.13165269,82.429,82.384,0.55967939]
[1773016378271,0.23606982,82.439,82.384,0.55967939]
[1773016378477,3.97815716,82.461,82.384,0.55967939]
[1773016378478,0.2381925,82.457,82.388,0.55967939]
[1773016378774,0.2381925,82.457,82.394,0.55967939]
[1773016378976,12.17530701,82.44,82.394,0.55967939]
[1773016379278,12.36568297,82.458,82.4,0.55967939]
[1773016379469,12.36568297,82.458,82.404,0.55967939]
[1773016379772,0.2381925,82.458,82.404,0.55967939]
[1773016380001,12.17530701,82.46,82.407,0.55967939]
[1773016380157,0.24028615,82.459,82.407,0.55967939]
[1773016380352,0.24028615,82.458,82.407,0.55967939]
[1773016380661,12.17530701,82.45,82.398,0.55967939]
[1773016380874,0.24235735,82.459,82.403,0.55967939]
[1773016381063,12.17530701,82.45,82.403,0.55967939]
[1773016381262,0.24235735,82.449,82.403,0.55967939]
[1773016381458,12.12694485,82.461,82.382,0.55967939]
[1773016381459,0.24440651,82.429,82.382,0.55967939]
[1773016381686,0.24440651,82.419,82.382,30.90580755]
[1773016382059,12.11810388,82.43,82.384,0.55967939]
[1773016382264,12.11810388,82.43,82.386,4.82477569]
[1773016382587,12.36453487,82.44,82.393,0.55967939]
[1773016382777,12.11810388,82.43,82.393,0.55967939]
[1773016383868,0.25123363,82.439,82.393,0.55967939]
[1773016384068,0.25123363,82.439,82.375,4.82477569]
[1773016384069,12.11810388,82.45,82.403,0.60357859]
[1773016384286,12.11810388,82.45,82.404,0.60357859]
[1773016384592,12.11810388,82.44,82.396,0.60357859]
[1773016384769,12.11810388,82.43,82.396,0.60357859]
[1773016385187,12.11810388,82.44,82.396,0.60357859]
[1773016385392,12.11810388,82.45,82.396,0.60357859]
[1773016386191,12.11810388,82.44,82.398,0.88790173]
[1773016386393,12.11810388,82.45,82.403,0.60357859]
[1773016386591,12.11810388,82.44,82.403,0.60357859]
[1773016387498,12.11810388,82.42,82.384,0.60357859]
[1773016387673,12.11810388,82.43,82.384,0.60357859]
[1773016387875,12.11810388,82.42,82.384,0.60357859]
[1773016388170,7.36448038,82.551,82.384,0.60357859]
[1773016388370,0.14216157,82.504,82.394,0.60357859]
[1773016388670,3.69383402,82.487,82.412,4.82477569]
[1773016388878,12.11810388,82.47,82.414,0.60357859]
[1773016389693,12.11810388,82.5,82.414,0.60357859]
[1773016389694,12.11900866,82.515,82.434,3.69383402]
[1773016389894,12.11810388,82.51,82.454,0.60357859]
[1773016390092,12.11466038,82.545,82.458,0.88790173]
[1773016390399,12.11466038,82.545,82.445,4.82477569]
[1773016390401,1e-08,82.54,82.481,3.69383402]
[1773016390694,1e-08,82.54,82.497,0.60357859]
[1773016391197,1e-08,82.54,82.463,90.94988055]
[1773016391198,1e-08,82.552,82.517,4.82477569]
[1773016391375,1e-08,82.552,82.519,0.60357859]
[1773016391695,12.11810388,82.6,82.527,4.82477569]
[1773016391895,12.11810388,82.6,82.498,15.11711092]
[1773016391896,7.42396138,82.619,82.54,0.60357859]
[1773016392100,7.42396138,82.619,82.558,0.60357859]
[1773016392101,12.11810388,82.6,82.558,0.60357859]
[1773016392289,7.42396138,82.619,82.528,15.11711092]
[1773016392290,12.11810388,82.58,82.533,0.60357859]
[1773016392496,12.11810388,82.56,82.524,12.1176605]
[1773016392693,12.11810388,82.56,82.521,0.60357859]
[1773016392694,12.13988564,82.56,82.522,12.11798065]
[1773016393294,12.11810388,82.56,82.521,0.60357859]
[1773016393679,12.11810388,82.56,82.523,0.60357859]
[1773016393993,12.11810388,82.57,82.523,0.60357859]
[1773016394197,12.11810388,82.56,82.523,0.60357859]
[1773016394380,12.11810388,82.55,82.523,0.60357859]
[1773016394576,12.11810388,82.56,82.525,0.60357859]
[1773016394990,12.11810388,82.55,82.525,0.60357859]
[1773016395688,12.11810388,82.55,82.516,12.11881843]
[1773016396498,48.41051702,82.627,82.516,12.11881843]
[1773016396499,0.02922189,82.598,82.517,4.82477569]
[1773016396677,42.37034297,82.605,82.528,0.60357859]
[1773016396678,12.11810388,82.59,82.528,0.60357859]
[1773016396882,0.02922189,82.569,82.528,0.60357859]
[1773016397081,12.11810388,82.56,82.528,0.60357859]
[1773016397284,0.02922189,82.569,82.528,0.60357859]
[1773016397485,12.11810388,82.59,82.528,0.60357859]
[1773016397685,12.11810388,82.58,82.528,0.60357859]
[1773016398419,12.10961624,82.579,82.53,0.60357859]
[1773016398786,24.22771411,82.58,82.53,0.60357859]
[1773016398992,12.11810388,82.6,82.537,0.60357859]
[1773016399794,12.11810388,82.59,82.537,0.60357859]
[1773016400403,0.1,82.61,82.539,0.60357859]
[1773016400607,12.10580473,82.605,82.547,0.60357859]
[1773016400785,12.11810388,82.59,82.547,0.60357859]
[1773016401096,12.21810388,82.61,82.547,0.60357859]
[1773016401286,0.1,82.61,82.563,0.28432314]
[1773016401601,0.1,82.61,82.541,3.69383402]
[1773016401602,0.1,82.61,82.569,0.60357859]
[1773016402110,0.1,82.61,82.572,0.60357859]
[1773016402415,12.1066841,82.599,82.558,12.11269652]
[1773016402589,12.1066841,82.599,82.559,0.60357859]
[1773016402906,0.1,82.61,82.558,12.11269652]
[1773016402907,0.1,82.61,82.563,0.60357859]
[1773016403086,0.03968238,82.646,82.584,4.82477569]
[1773016403282,0.03968238,82.646,82.587,0.60357859]
[1773016403283,12.11810388,82.64,82.587,0.60357859]
[1773016403886,0.04135715,82.619,82.576,0.60357859]
[1773016404124,12.11810388,82.64,82.579,0.60357859]
[1773016404406,12.09935994,82.649,82.599,0.60357859]
[1773016404583,12.09935994,82.649,82.586,4.82477569]
[1773016404584,12.11810388,82.63,82.592,12.10765728]
[1773016404781,12.11810388,82.62,82.589,0.60357859]
[1773016404997,0.04300999,82.662,82.592,0.60357859]
[1773016405191,0.04300999,82.659,82.599,0.60357859]
[1773016405590,0.04300999,82.659,82.598,0.28432314]
[1773016405591,12.11810388,82.66,82.602,4.82477569]
[1773016405889,12.11810388,82.64,82.592,0.60357859]
[1773016406094,12.11810388,82.63,82.592,0.60357859]
[1773016406392,12.11810388,82.62,82.585,12.10865467]
[1773016406610,12.10375337,82.619,82.554,0.60357859]
[1773016406909,12.11810388,82.61,82.559,0.60357859]
[1773016407109,12.10375337,82.619,82.559,0.60357859]
[1773016407110,12.11810388,82.6,82.559,0.60357859]
[1773016407409,12.11810388,82.61,82.559,0.60357859]
[1773016408204,12.10375337,82.619,82.559,0.60357859]
[1773016408397,12.11810388,82.6,82.559,0.60357859]
[1773016408595,48.37894975,82.681,82.559,0.60357859]
[1773016408596,0.04946476,82.658,82.571,4.82477569]
[1773016408815,0.04946476,82.658,82.563,3.69383402]
[1773016408816,12.11810388,82.62,82.573,0.60357859]
[1773016409117,12.16756864,82.63,82.573,0.60357859]
[1773016409289,12.11810388,82.63,82.573,0.60357859]
[1773016409490,102.8271415,82.663,82.573,0.60357859]
[1773016409491,0.04946476,82.653,82.573,0.60357859]
[1773016409691,12.11810388,82.64,82.573,0.60357859]
[1773016410298,12.11810388,82.63,82.573,0.60357859]
[1773016410713,12.11810388,82.62,82.576,0.60357859]
[1773016411092,42.35800989,82.629,82.576,0.60357859]
[1773016411093,12.10228854,82.629,82.576,0.60357859]
[1773016411294,12.11810388,82.62,82.576,0.60357859]
[1773016411806,12.11810388,82.61,82.576,0.60357859]
[1773016412117,42.35800989,82.629,82.576,0.60357859]
[1773016412118,0.05411315,82.617,82.576,0.60357859]
[1773016412426,42.35800989,82.629,82.576,0.60357859]
[1773016412427,12.10228854,82.629,82.576,0.60357859]
[1773016412726,12.11810388,82.63,82.578,0.60357859]
[1773016412727,12.10375337,82.619,82.578,0.60357859]
[1773016413101,12.11810388,82.61,82.571,12.11070044]
[1773016413309,12.11810388,82.61,82.572,0.6153483]
[1773016413721,12.11810388,82.59,82.506,0.6153483]
[1773016414028,42.3631368,82.619,82.515,0.6153483]
[1773016414029,12.11810388,82.58,82.515,0.6153483]
[1773016414194,12.11810388,82.58,82.527,0.6153483]
[1773016414399,0.05780957,82.589,82.527,0.6153483]
[1773016414624,12.11810388,82.6,82.527,0.6153483]
[1773016414927,0.28432314,82.638,82.542,0.75750987]
[1773016414928,12.11810388,82.61,82.542,0.75750987]
[1773016415218,12.11810388,82.61,82.548,0.6153483]
[1773016415419,3.97815716,82.638,82.536,0.28432314]
[1773016415420,54.58,82.706,82.551,4.30918232]
[1773016415622,0.1,82.72,82.613,3.69383402]
[1773016415623,1e-08,82.664,82.613,3.69383402]
[1773016415821,1e-08,82.664,82.618,4.82477569]
[1773016416119,1e-08,82.664,82.617,0.6153483]
[1773016416120,1e-08,82.664,82.635,4.82477569]
[1773016416314,0.31359669,82.709,82.644,4.82477569]
[1773016416508,0.31521405,82.719,82.657,0.6153483]
[1773016416711,12.11810388,82.71,82.66,0.6153483]
[1773016417102,30.21808169,82.732,82.667,0.6153483]
[1773016417103,12.11810388,82.73,82.667,0.6153483]
[1773016417393,0.31521405,82.718,82.667,0.6153483]
[1773016417599,12.11810388,82.71,82.667,0.6153483]
[1773016417817,12.11810388,82.69,82.658,12.09804253]
[1773016418019,12.11810388,82.71,82.659,0.6153483]
[1773016418221,12.11810388,82.71,82.66,0.6153483]
[1773016418798,12.21810388,82.72,82.663,0.6153483]
[1773016419207,12.21810388,82.72,82.662,0.28432314]
[1773016419208,12.21810388,82.72,82.667,0.6153483]
[1773016419406,12.11810388,82.71,82.667,0.6153483]
[1773016419606,12.21810388,82.72,82.667,0.6153483]
[1773016419802,12.11810388,82.71,82.667,0.6153483]
[1773016420320,12.11810388,82.71,82.622,1.21033138]
[1773016420321,0.31917985,82.715,82.649,0.6153483]
[1773016420501,0.31917985,82.715,82.65,4.82477569]
[1773016420502,12.11810388,82.71,82.65,4.82477569]
[1773016420820,0.1,82.72,82.67,4.82477569]
[1773016421024,36.52083693,82.76,82.687,0.6153483]
[1773016421025,18.39604802,82.76,82.687,0.6153483]
[1773016421221,19.49673003,82.756,82.695,0.6153483]
[1773016421422,12.11810388,82.75,82.695,0.6153483]
[1773016421733,0.42234525,82.749,82.695,0.6153483]
[1773016421903,12.11810388,82.74,82.695,0.6153483]
[1773016422232,12.11810388,82.72,82.675,0.6153483]
[1773016422403,49.70601999,82.756,82.672,0.14216157]
[1773016422404,0.42234525,82.755,82.681,0.14216157]
[1773016422598,0.4239401,82.739,82.687,0.75750987]
[1773016422912,0.4239401,82.739,82.681,0.14216157]
[1773016422913,7.41291961,82.756,82.692,0.6153483]
[1773016423225,7.41291961,82.756,82.696,0.6153483]
[1773016423703,7.70458436,82.757,82.705,0.6153483]
[1773016423904,12.11810388,82.75,82.705,0.6153483]
[1773016424112,12.54362889,82.75,82.705,0.6153483]
[1773016424319,12.11810388,82.74,82.693,0.6153483]
[1773016424618,0.2484703,82.767,82.695,0.6153483]
[1773016424802,0.2484703,82.767,82.712,4.82477569]
[1773016425002,12.11810388,82.76,82.713,0.6153483]
[1773016425417,12.75776163,82.767,82.703,42.3201093]
[1773016425418,12.11810388,82.74,82.703,42.3201093]
[1773016425623,12.11810388,82.74,82.703,12.0914598]
[1773016426223,0.42862239,82.739,82.703,12.0914598]
[1773016426609,12.11810388,82.72,82.681,12.09467713]
[1773016426818,12.11810388,82.72,82.68,30.23697052]
[1773016427024,12.11810388,82.71,82.672,0.6153483]
[1773016427518,12.11810388,82.7,82.659,0.6153483]
[1773016427908,12.11810388,82.68,82.646,12.09973024]
[1773016428227,12.11810388,82.68,82.647,0.6153483]
[1773016428407,102.7575285,82.719,82.64,12.10056957]
[1773016428408,12.11810388,82.67,82.64,12.10056957]
[1773016428606,0.43165126,82.686,82.635,12.71673244]
[1773016428607,12.11810388,82.66,82.635,12.71673244]
[1773016428809,0.43165126,82.686,82.637,0.6153483]
[1773016429126,90.6684075,82.719,82.639,0.6153483]
[1773016429127,12.11810388,82.68,82.639,0.6153483]
[1773016429622,12.11810388,82.69,82.64,0.6153483]
[1773016430612,12.11810388,82.7,82.644,0.6153483]
[1773016430820,12.11810388,82.72,82.664,0.6153483]
[1773016431018,12.11810388,82.72,82.658,3.69383402]
[1773016431019,12.11810388,82.72,82.668,0.6153483]
[1773016431215,12.11810388,82.71,82.668,0.6153483]
[1773016431526,12.11810388,82.72,82.668,0.6153483]
[1773016431927,12.11810388,82.71,82.668,0.6153483]
[1773016432523,0.43890837,82.734,82.67,0.6153483]
[1773016432832,12.11810388,82.73,82.671,0.6153483]
[1773016433013,12.11810388,82.73,82.674,0.6153483]
[1773016433718,12.0876597,82.729,82.674,0.6153483]
[1773016434031,12.0876597,82.729,82.672,42.33597831]
[1773016434032,0.44031009,82.709,82.672,42.33597831]
[1773016434537,12.55980034,82.72,82.673,0.6153483]
[1773016434717,12.11810388,82.71,82.673,0.6153483]
[1773016435026,12.11810388,82.69,82.661,0.6153483]
[1773016435228,0.44169646,82.708,82.646,0.6153483]
[1773016435229,12.11810388,82.7,82.646,0.6153483]
[1773016435728,12.11810388,82.7,82.646,0.89967144]
[1773016435928,12.11810388,82.7,82.647,0.6153483]
[1773016437231,72.54883363,82.74,82.65,0.6153483]
[1773016437232,12.11810388,82.71,82.65,0.6153483]
[1773016437817,12.56388779,82.72,82.65,0.6153483]
[1773016438020,12.11810388,82.71,82.65,0.6153483]
[1773016438828,12.11810388,82.74,82.65,0.6153483]
[1773016438829,12.11810388,82.7,82.65,0.6153483]
[1773016439025,12.11810388,82.7,82.652,0.6153483]
[1773016439026,12.53915249,82.699,82.652,0.6153483]
[1773016439614,12.56651928,82.69,82.652,0.6153483]
[1773016440422,12.11810388,82.68,82.652,0.6153483]
[1773016440749,0.44970789,82.679,82.651,12.09906716]
[1773016441234,0.44970789,82.679,82.642,12.10038479]
[1773016441442,0.44970789,82.679,82.642,12.71573309]
[1773016441635,12.11810388,82.67,82.632,12.10184916]
[1773016442155,48.34120409,82.746,82.632,12.10184916]
[1773016442156,0.45182062,82.718,82.633,0.6153483]
[1773016442322,72.49353598,82.766,82.633,0.6153483]
[1773016442323,12.11810388,82.68,82.633,0.6153483]
[1773016443338,12.11810388,82.68,82.635,0.60799289]
[1773016443537,0.45431718,82.679,82.635,0.60799289]
[1773016443836,12.04337926,82.69,82.636,0.60799289]
[1773016445039,0.45675534,82.679,82.636,0.60799289]
[1773016445341,12.09336074,82.69,82.634,42.35544691]
[1773016445342,12.04337926,82.66,82.634,12.10155626]
[1773016445635,12.04337926,82.68,82.634,0.60799289]
[1773016445842,12.09370725,82.688,82.634,0.60799289]
[1773016446027,12.04337926,82.68,82.634,0.60799289]
[1773016446339,12.09370725,82.688,82.634,0.60799289]
[1773016446340,12.04337926,82.67,82.634,0.60799289]
[1773016446543,12.04337926,82.66,82.633,30.25410603]
[1773016446741,12.04337926,82.68,82.634,0.60799289]
[1773016447217,12.04337926,82.67,82.634,0.60799289]
[1773016447417,12.04337926,82.67,82.636,0.63567128]
[1773016447822,12.04337926,82.66,82.635,12.10140981]
[1773016448236,12.04337926,82.66,82.625,12.10287443]
[1773016448546,12.04337926,82.66,82.625,42.36006051]
[1773016449043,12.04337926,82.66,82.625,12.10287443]
[1773016449539,12.04337926,82.65,82.625,12.10287443]
[1773016450128,0.46457922,82.639,82.602,12.1062444]
[1773016450351,12.04337926,82.63,82.602,12.1062444]
[1773016450523,0.46457922,82.639,82.602,42.3718554]
[1773016451133,12.04337926,82.63,82.602,42.3718554]
[1773016451649,12.04337926,82.62,82.602,12.1062444]
[1773016451945,12.10096185,82.639,82.577,30.91019573]
[1773016451946,12.04337926,82.61,82.577,30.91019573]
[1773016452145,12.04337926,82.62,82.579,0.63567128]
[1773016452443,12.04337926,82.63,82.579,0.63567128]
[1773016452744,12.04337926,82.63,82.58,0.63567128]
[1773016453243,12.04337926,82.64,82.58,0.63567128]
[1773016453561,12.04337926,82.63,82.58,0.63567128]
[1773016454321,12.04337926,82.63,82.582,0.63567128]
[1773016454529,12.04337926,82.62,82.582,0.63567128]
[1773016454837,12.04337926,82.63,82.582,0.63567128]
[1773016455542,12.10228854,82.629,82.582,0.63567128]
[1773016455850,12.04337926,82.63,82.582,0.63567128]
[1773016456152,0.46787085,82.639,82.582,0.63567128]
[1773016456353,48.33653414,82.754,82.561,4.82477569]
[1773016456354,0.47188506,82.765,82.602,3.69383402]
[1773016456525,0.47188506,82.765,82.601,4.82477569]
[1773016456526,12.04337926,82.75,82.668,0.63567128]
[1773016456830,12.04337926,82.75,82.639,0.46787085]
[1773016456831,12.04337926,82.72,82.673,0.63567128]
[1773016457033,0.47289267,82.709,82.649,0.63567128]
[1773016457227,12.04337926,82.7,82.65,0.63567128]
[1773016457626,12.04337926,82.74,82.65,0.63567128]
[1773016457627,12.04337926,82.69,82.65,0.63567128]
[1773016458240,3.69383402,82.733,82.652,0.63567128]
[1773016458241,12.04337926,82.7,82.652,0.63567128]
[1773016458548,12.04337926,82.71,82.652,0.63567128]
[1773016459654,12.04337926,82.7,82.652,0.63567128]
[1773016460245,0.47506393,82.709,82.652,0.63567128]
[1773016460449,0.47506393,82.709,82.654,0.63567128]
[1773016461151,3.69383402,82.743,82.654,0.63567128]
[1773016461152,12.07905801,82.788,82.711,0.63567128]
[1773016461350,12.04337926,82.78,82.722,0.63567128]
[1773016461850,12.08092238,82.776,82.722,0.63567128]
[1773016462545,12.08092238,82.776,82.724,0.63567128]
[1773016464757,12.62399381,82.77,82.726,0.63567128]
[1773016465940,12.62489384,82.77,82.726,0.63567128]
[1773016466142,12.04337926,82.75,82.72,12.08895439]
[1773016466349,0.48151458,82.749,82.704,12.0913136]
[1773016466537,0.48241753,82.747,82.704,12.0913136]
[1773016466856,0.48241753,82.747,82.704,42.95526888]
[1773016467363,0.48241753,82.747,82.705,0.63567128]
[1773016468068,12.04337926,82.75,82.705,0.63567128]
[1773016468239,0.48329894,82.759,82.705,0.63567128]
[1773016468661,0.48329894,82.759,82.707,0.63567128]
[1773016468662,12.08342395,82.758,82.707,0.63567128]
[1773016469143,12.52754724,82.75,82.707,0.63567128]
[1773016471564,12.52754724,82.75,82.708,12.09072882]
[1773016471565,12.08473818,82.749,82.708,12.09072882]
[1773016471865,12.08473818,82.749,82.708,42.95322217]
[1773016472048,12.52754724,82.75,82.709,0.63567128]
[1773016472638,12.08473818,82.749,82.709,0.63567128]
[1773016472842,12.04337926,82.73,82.681,0.63567128]
[1773016473040,0.48836734,82.739,82.681,0.63567128]
[1773016473241,42.29658364,82.749,82.681,0.63567128]
[1773016473242,12.08473818,82.749,82.681,0.63567128]
[1773016473651,12.53256154,82.75,82.684,0.62642453]
[1773016474047,42.29658364,82.749,82.684,0.62642453]
[1773016474444,12.08473818,82.749,82.684,0.62642453]
[1773016474859,0.49076795,82.748,82.684,0.62642453]
[1773016475163,0.49076795,82.739,82.684,0.62642453]
[1773016476955,12.08634484,82.738,82.686,0.62642453]
[1773016478246,0.49310426,82.737,82.686,0.62642453]
[1773016478775,12.04337926,82.72,82.686,0.62642453]
[1773016478952,12.04337926,82.72,82.687,12.0937995]
[1773016478953,12.089121,82.719,82.687,12.0937995]
[1773016480268,12.08836479,82.725,82.688,0.62642453]
[1773016480967,30.2158834,82.738,82.69,0.62642453]
[1773016480968,12.0876597,82.729,82.69,0.62642453]
[1773016481849,12.04337926,82.72,82.69,0.62642453]
[1773016482256,0.49608801,82.728,82.69,0.62642453]
[1773016483775,12.08795193,82.727,82.692,0.62642453]
[1773016483975,12.58547001,82.727,82.692,0.62642453]
[1773016484854,0.49822602,82.726,82.692,0.62642453]
[1773016485676,12.089121,82.719,82.682,0.62642453]
[1773016487272,12.089121,82.719,82.683,42.33034601]
[1773016487680,12.089121,82.719,82.683,42.95677054]
[1773016487870,12.089121,82.719,82.684,0.62642453]
[1773016488671,12.04337926,82.71,82.683,12.09438457]
[1773016488874,0.50180522,82.699,82.665,12.09701808]
[1773016489066,12.089121,82.719,82.668,0.62642453]
[1773016489676,12.59158655,82.719,82.668,0.62642453]
[1773016489882,0.50246555,82.709,82.668,0.62642453]
[1773016490083,12.04337926,82.71,82.668,0.62642453]
[1773016490084,12.54584481,82.7,82.668,0.62642453]
[1773016490377,0.50246555,82.699,82.668,0.62642453]
[1773016491579,12.09219086,82.698,82.669,12.09643276]
[1773016491766,0.50377981,82.689,82.658,12.09804253]
[1773016491969,0.50377981,82.679,82.647,12.09965273]
[1773016492174,0.50377981,82.679,82.641,12.10042333]
[1773016492767,0.50377981,82.679,82.642,0.62642453]
[1773016493478,0.50442117,82.679,82.642,0.62642453]
[1773016493678,12.04337926,82.67,82.643,12.10023837]
[1773016493879,12.09511599,82.678,82.643,12.10023837]
[1773016494075,0.50505489,82.677,82.643,12.10023837]
[1773016494377,12.04337926,82.67,82.643,12.10023837]
[1773016495083,0.50568065,82.659,82.621,0.62642453]
[1773016495385,0.50568065,82.659,82.622,12.10331388]
[1773016495578,0.50568065,82.659,82.622,12.72973841]
[1773016495757,12.60358147,82.659,82.624,12.10302091]
[1773016495961,0.50631307,82.658,82.624,12.10302091]
[1773016496784,12.55030161,82.65,82.613,0.62642453]
[1773016496988,12.55030161,82.65,82.614,12.10448592]
[1773016497279,0.50692235,82.663,82.615,0.62642453]
[1773016497492,12.04337926,82.67,82.615,0.62642453]
[1773016498084,0.28432314,82.705,82.601,0.28432314]
[1773016498085,7.37223247,82.744,82.623,4.82477569]
[1773016498263,48.2886137,82.836,82.679,0.62642453]
[1773016498264,12.04337926,82.75,82.679,0.62642453]
[1773016498465,12.58914408,82.769,82.692,0.62642453]
[1773016498772,0.50732601,82.749,82.695,0.62642453]
[1773016499965,0.50792574,82.761,82.697,0.62642453]
[1773016500166,0.50792574,82.761,82.698,0.62642453]
[1773016500373,12.08313194,82.76,82.698,0.62642453]
[1773016500669,12.08181807,82.769,82.701,0.62642453]
[1773016500870,0.1,82.77,82.702,0.91074767]
[1773016501089,0.1,82.77,82.703,0.62642453]
[1773016501377,0.1,82.77,82.696,102.78610815]
[1773016501378,0.1,82.77,82.719,4.82477569]
[1773016501582,0.1,82.77,82.721,0.62642453]
[1773016501777,0.50908854,82.769,82.721,0.62642453]
[1773016501978,0.50908854,82.769,82.712,0.28432314]
[1773016501979,0.1,82.77,82.723,0.62642453]
[1773016502775,21.85363952,82.86,82.723,0.62642453]
[1773016502776,0.51021481,82.806,82.729,4.82477569]
[1773016503081,0.51021481,82.816,82.739,0.66829352]
[1773016503379,0.51021481,82.816,82.73,19.1034673]
[1773016503380,0.51021481,82.829,82.752,3.69383402]
[1773016503580,0.51021481,82.829,82.759,4.82477569]
[1773016503779,12.58237701,82.839,82.76,0.66829352]
[1773016503962,0.1,82.86,82.76,0.66829352]
[1773016503963,12.51020407,82.85,82.771,0.66829352]
[1773016504164,12.51020407,82.85,82.778,4.82477569]
[1773016504366,12.07015172,82.849,82.779,0.66829352]
[1773016504775,11.99943584,82.84,82.779,0.66829352]
[1773016504986,12.07015172,82.849,82.779,0.66829352]
[1773016505182,0.1,82.86,82.771,5.10909883]
[1773016505183,12.09943584,82.86,82.788,4.82477569]
[1773016505386,0.51131151,82.858,82.786,0.66829352]
[1773016506188,0.1,82.86,82.789,0.66829352]
[1773016506189,11.99943584,82.84,82.789,0.66829352]
[1773016506484,0.51239149,82.819,82.766,0.66829352]
[1773016506682,0.51239149,82.819,82.694,48.37097974]
[1773016506683,0.51292526,82.789,82.746,12.0851619]
[1773016506862,0.51292526,82.789,82.744,0.63143716]
[1773016507069,0.51292526,82.789,82.745,12.08532237]
[1773016507264,0.51292526,82.789,82.746,0.63143716]
[1773016507474,11.99943584,82.8,82.746,0.63143716]
[1773016507676,0.28432314,82.824,82.746,0.63143716]
[1773016507677,11.99943584,82.79,82.746,0.63143716]
[1773016507875,3.69383402,82.854,82.746,0.63143716]
[1773016508083,90.51739743,82.857,82.746,0.63143716]
[1773016508084,0.51345149,82.809,82.749,0.63143716]
[1773016508384,12.07612791,82.808,82.749,0.63143716]
[1773016508586,12.07531495,82.814,82.749,0.63143716]
[1773016508789,11.99943584,82.82,82.749,0.9157603]
[1773016508965,11.99943584,82.83,82.759,0.63143716]
[1773016509283,11.99943584,82.81,82.759,0.63143716]
[1773016509488,0.5139684,82.809,82.759,0.63143716]
[1773016510082,0.5139684,82.809,82.761,0.63143716]
[1773016510277,12.07312816,82.829,82.761,0.63143716]
[1773016510589,12.07312816,82.829,82.76,42.2909618]
[1773016510590,11.99943584,82.84,82.769,0.63143716]
[1773016510883,12.58457217,82.853,82.76,102.70662153]
[1773016510884,11.99943584,82.85,82.778,0.63143716]
[1773016511087,11.99943584,82.84,82.778,0.63143716]
[1773016511687,0.51548822,82.849,82.778,0.63143716]
[1773016511878,11.99943584,82.85,82.778,0.63143716]
[1773016512200,12.1685603,82.86,82.784,0.63143716]
[1773016512374,0.51548822,82.859,82.788,0.63143716]
[1773016513192,11.99943584,82.85,82.788,0.63143716]
[1773016513371,0.51598304,82.849,82.788,0.63143716]
[1773016513572,12.06869501,82.859,82.788,0.63143716]
[1773016513772,12.5843685,82.859,82.788,0.63143716]
[1773016513972,0.51567349,82.849,82.788,0.63143716]
[1773016514172,0.51567349,82.847,82.79,0.63143716]